lending/lending_fUSD_20241229
["ID","MTS","AMOUNT","RATE_DAILY","PERIOD"]
[347114913,1735503068319,-315.28,0.0001902,2]
[347114914,1735503068328,-167.07,0.0001902,2]
[347114915,1735503068337,-500.0,0.0001902,2]
[347114916,1735503068347,-421.76,0.0001902,2]
[347114917,1735503068356,-500.0,0.0001902,2]
[347114918,1735503068366,-500.0,0.0001902,2]
[347114919,1735503068375,-500.0,0.0001902,2]
[347114920,1735503068384,-500.0,0.0001902,2]
[347114921,1735503068393,-571.45,0.0001902,2]
[347114922,1735503068402,-500.0,0.0001902,2]
[347114923,1735503068411,-500.0,0.0001902,2]
[347114924,1735503068420,-256.12,0.0001902,2]
[347114925,1735503068429,-500.0,0.0001902,2]
[347114926,1735503068438,-667.24,0.0001902,2]
[347114927,1735503068447,-500.0,0.0001902,2]
[347114928,1735503068456,-1151.13,0.0001902,2]
[347114929,1735503068466,-227.12,0.0001902,2]
[347114930,1735503068475,-269.19,0.0001902,2]
[347114931,1735503068484,-500.23,0.0001902,2]
[347114932,1735503068494,-1940.6,0.0001902,2]
[347114933,1735503068505,-500.0,0.0001902,2]
[347114934,1735503068515,-500.0,0.0001902,2]
[347114935,1735503068524,-500.0,0.0001902,2]
[347114936,1735503068534,-500.0,0.0001902,2]
[347114937,1735503068544,-500.0,0.0001902,2]
[347114938,1735503068553,-500.0,0.0001902,2]
[347114939,1735503068563,-629.96,0.0001902,2]
[347114940,1735503068573,-1169.28,0.0001902,2]
[347114941,1735503068583,-500.0,0.0001902,2]
[347114942,1735503068592,-500.0,0.0001902,2]
[347114943,1735503068602,-942.62,0.0001902,2]
[347114944,1735503068612,-888.62,0.0001902,2]
[347114945,1735503068621,-500.0,0.0001902,2]
[347114946,1735503068631,-5874.67,0.0001902,2]
[347114947,1735503068640,-1960.19,0.00019021,2]
[347114948,1735503068649,-1628.51,0.00019021,2]
[347114949,1735503068659,-500.0,0.00019021,2]
[347114950,1735503068668,-500.0,0.00019021,2]
[347114951,1735503068677,-526.84,0.00019021,2]
[347114952,1735503068687,-500.0,0.00019021,2]
[347114953,1735503068696,-609.65,0.00019021,2]
[347114954,1735503068705,-844.57,0.00019021,2]
[347114955,1735503068714,-500.0,0.00019021,2]
[347114956,1735503068724,-1819.23,0.00019021,2]
[347114957,1735503068733,-1000.4,0.00019021,2]
[347114958,1735503068742,-500.0,0.00019021,2]
[347114959,1735503068753,-3895.18,0.00019021,2]
[347114960,1735503068762,-179.82,0.00019021,2]
[347114961,1735503068771,-500.0,0.00019021,2]
[347114962,1735503068780,-500.0,0.00019021,2]
[347114963,1735503068789,-1046.25,0.00019021,2]
[347114964,1735503068799,-500.0,0.00019021,2]
[347114965,1735503068808,-501.01,0.00019021,2]
[347114966,1735503068817,-894.47,0.00019021,2]
[347114967,1735503068827,-500.0,0.00019021,2]
[347114968,1735503068835,-673.33,0.00019021,2]
[347114969,1735503068844,-631.12,0.00019021,2]
[347114970,1735503068854,-437.4,0.00019096,2]
[347114971,1735503068863,-771.25,0.00019096,2]
[347114972,1735503068873,-437.4,0.00019096,2]
[347114973,1735503068883,-437.4,0.00019096,2]
[347114974,1735503068892,-845.45,0.00019097,2]
[347114975,1735503068901,-1780.83,0.00019097,2]
[347114976,1735503068911,-1367.7,0.00019097,2]
[347114977,1735503068920,-525.17,0.00019097,2]
[347114978,1735503068930,-843.1,0.00019097,2]
[347114979,1735503068939,-654.57,0.00019097,2]
[347114980,1735503068948,-1099.79,0.00019097,2]
[347114981,1735503068958,-603.24,0.00019097,2]
[347114982,1735503068967,-608.79,0.00019097,2]
[347114983,1735503068977,-1529.19,0.00019097,2]
[347114984,1735503068987,-500.0,0.00019097,2]
[347114985,1735503068996,-773.37,0.00019098,2]
[347114986,1735503069007,-500.0,0.00019098,2]
[347114987,1735503069016,-500.0,0.00019098,2]
[347114988,1735503069026,-860.07,0.00019098,2]
[347114989,1735503069035,-336.1,0.00019098,2]
[347114990,1735503069045,-848.88,0.00019098,2]
[347114991,1735503069054,-916.75,0.00019104,2]
[347114992,1735503069063,-150.0,0.00019178,2]
[347114993,1735503069072,-150.0,0.00019178,2]
[347114994,1735503069081,-150.0,0.00019178,2]
[347114995,1735503069091,-150.0,0.00019178,2]
[347114996,1735503069101,-1956.56,0.00019178,2]
[347114997,1735503069110,-300.0,0.00019178,2]
[347114998,1735503069119,-150.0,0.00019178,2]
[347114999,1735503069129,-873.06,0.00019178,2]
[347115000,1735503069138,-150.0,0.00019178,2]
[347115001,1735503069147,-150.0,0.00019178,2]
[347115002,1735503069156,-150.0,0.00019178,2]
[347115003,1735503069165,-150.0,0.00019178,2]
[347115004,1735503069177,-150.0,0.00019178,2]
[347115005,1735503069188,-150.0,0.00019178,2]
[347115006,1735503069197,-150.0,0.00019178,2]
[347115007,1735503069207,-150.0,0.00019178,2]
[347115008,1735503069216,-150.0,0.00019178,2]
[347115009,1735503069226,-436.57,0.00019182,2]
[347115010,1735503069235,-500.0,0.000192,2]
[347115011,1735503069244,-3309.857,0.000192,2]
[347115012,1735503069254,-160.637,0.000192,2]
[347115013,1735503069263,-1000.0,0.000192,2]
[347115014,1735503069273,-200.57,0.00019242,30]
[347115015,1735503069282,-518.83,0.00019294,2]
[347115016,1735503069292,-438.84,0.00019294,2]
[347115017,1735503069301,-500.0,0.00019294,2]
[347115018,1735503069311,-500.0,0.00019294,2]
[347115019,1735503069320,-500.0,0.00019294,2]
[347115020,1735503069330,-500.0,0.00019294,2]
[347115021,1735503069340,-500.0,0.00019294,2]
[347115022,1735503069349,-500.0,0.00019294,2]
[347115023,1735503069359,-500.0,0.00019294,2]
[347115024,1735503069369,-500.0,0.00019294,2]
[347115025,1735503069378,-243.03,0.00019294,2]
[347115026,1735503069388,-216.86,0.00019294,2]
[347115027,1735503069398,-667.24,0.00019294,2]
[347115028,1735503069407,-500.0,0.00019294,2]
[347115029,1735503069558,-1151.13,0.00019294,2]
[347115030,1735503069567,-500.23,0.00019294,2]
[347115031,1735503069577,-1940.6,0.00019294,2]
[347115032,1735503069587,-500.0,0.00019294,2]
[347115033,1735503069595,-500.0,0.00019294,2]
[347115034,1735503069605,-500.0,0.00019294,2]
[347115035,1735503069614,-500.0,0.00019294,2]
[347115036,1735503069624,-500.0,0.00019294,2]
[347115037,1735503069633,-500.0,0.00019294,2]
[347115038,1735503069642,-629.96,0.00019294,2]
[347115039,1735503069651,-1169.28,0.00019294,2]
[347115040,1735503069661,-500.0,0.00019294,2]
[347115041,1735503069670,-155.48,0.00019294,2]
[347115042,1735503069680,-942.62,0.00019294,2]
[347115043,1735503069689,-888.62,0.00019294,2]
[347115044,1735503069699,-500.0,0.00019294,2]
[347115045,1735503069708,-5874.67,0.00019294,2]
[347115046,1735503069718,-1960.19,0.00019295,2]
[347115047,1735503069727,-1628.51,0.00019295,2]
[347115048,1735503069737,-500.0,0.00019295,2]
[347115049,1735503069747,-500.0,0.00019295,2]
[347115050,1735503069758,-500.0,0.00019295,2]
[347115051,1735503069767,-609.65,0.00019295,2]
[347115052,1735503069777,-844.57,0.00019295,2]
[347115053,1735503069788,-500.0,0.00019295,2]
[347115054,1735503069800,-1819.23,0.00019295,2]
[347115055,1735503069810,-1000.4,0.00019295,2]
[347115056,1735503069820,-500.0,0.00019295,2]
[347115057,1735503069831,-3895.18,0.00019295,2]
[347115058,1735503069841,-500.0,0.00019295,2]
[347115059,1735503069851,-500.0,0.00019295,2]
[347115060,1735503069862,-1046.25,0.00019295,2]
[347115061,1735503069872,-500.0,0.00019295,2]
[347115062,1735503069882,-501.01,0.00019295,2]
[347115063,1735503069891,-894.47,0.00019295,2]
[347115064,1735503069900,-500.0,0.00019295,2]
[347115065,1735503069909,-673.33,0.00019295,2]
[347115066,1735503069919,-631.12,0.00019295,2]
[347115067,1735503069928,-436.5,0.00019298,2]
[347115068,1735503069937,-601.26,0.00019298,2]
[347115069,1735503069946,-771.25,0.000193,2]
[347115070,1735503069956,-1542.5,0.000193,2]
[347115071,1735503069965,-437.4,0.000193,2]
[347115072,1735503069974,-771.25,0.000193,2]
[347115073,1735503069983,-771.25,0.000193,2]
[347115074,1735503069992,-874.8,0.000193,2]
[347115075,1735503070001,-1542.35,0.000193,2]
[347115076,1735503070011,-437.4,0.000193,2]
[347115077,1735503070020,-150.0,0.00019315,2]
[347115078,1735503070030,-392.45,0.00019355,2]
[347115079,1735503070039,-500.0,0.00019362,2]
[347115080,1735503070048,-845.45,0.00019371,2]
[347115081,1735503070058,-1780.83,0.00019371,2]
[347115082,1735503070068,-525.17,0.00019371,2]
[347115083,1735503070077,-843.1,0.00019371,2]
[347115084,1735503070087,-654.57,0.00019371,2]
[347115085,1735503070096,-1099.79,0.00019371,2]
[347115086,1735503070106,-603.24,0.00019371,2]
[347115087,1735503070116,-608.79,0.00019371,2]
[347115088,1735503070125,-1529.19,0.00019371,2]
[347115089,1735503070134,-500.0,0.00019371,2]
[347115090,1735503070143,-773.37,0.00019372,2]
[347115091,1735503070152,-500.0,0.00019372,2]
[347115092,1735503070162,-500.0,0.00019372,2]
[347115093,1735503070172,-860.07,0.00019372,2]
[347115094,1735503070186,-848.88,0.00019372,2]
[347115095,1735503070195,-1000.0,0.000194,2]
[347115096,1735503070204,-150.0,0.00019452,2]
[347115097,1735503070215,-427.74124,0.00019459,2]
[347115098,1735503070224,-730.0,0.000195,2]
[347115099,1735503070233,-1000.0,0.000195,2]
[347115100,1735503070242,-460.0,0.000195,2]
[347115101,1735503070253,-974.5,0.000195,2]
[347115102,1735503070263,-500.0,0.00019568,2]
[347115103,1735503070274,-175.28,0.00019568,2]
[347115104,1735503070284,-500.0,0.00019568,2]
[347115105,1735503070293,-500.0,0.00019568,2]
[347115106,1735503070303,-500.0,0.00019568,2]
[347115107,1735503070312,-547.39,0.00019568,2]
[347115108,1735503070322,-500.0,0.00019568,2]
[347115109,1735503070331,-500.0,0.00019568,2]
[347115110,1735503070340,-667.24,0.00019568,2]
[347115111,1735503070349,-448.87,0.00019568,2]
[347115112,1735503070359,-1151.13,0.00019568,2]
[347115113,1735503070368,-500.23,0.00019568,2]
[347115114,1735503070378,-1940.6,0.00019568,2]
[347115115,1735503070388,-500.0,0.00019568,2]
[347115116,1735503070398,-500.0,0.00019568,2]
[347115117,1735503070407,-399.63,0.00019568,2]
[347115118,1735503070417,-500.0,0.00019568,2]
[347115119,1735503070426,-500.0,0.00019568,2]
[347115120,1735503070436,-500.0,0.00019568,2]
[347115121,1735503070445,-629.96,0.00019568,2]
[347115122,1735503070454,-1169.28,0.00019568,2]
[347115123,1735503070463,-356.0,0.00019568,2]
[347115124,1735503070472,-942.62,0.00019568,2]
[347115125,1735503070482,-888.62,0.00019568,2]
[347115126,1735503070491,-500.0,0.00019568,2]
[347115127,1735503070500,-5874.67,0.00019568,2]
[347115128,1735503070510,-1960.19,0.00019569,2]
[347115129,1735503070520,-1628.51,0.00019569,2]
[347115130,1735503070529,-500.0,0.00019569,2]
[347115131,1735503070539,-500.0,0.00019569,2]
[347115132,1735503070549,-500.0,0.00019569,2]
[347115133,1735503070558,-609.65,0.00019569,2]
[347115134,1735503070567,-844.57,0.00019569,2]
[347115135,1735503070576,-500.0,0.00019569,2]
[347115136,1735503070586,-1819.23,0.00019569,2]
[347115137,1735503070595,-1000.4,0.00019569,2]
[347115138,1735503070604,-500.0,0.00019569,2]
[347115139,1735503070614,-3895.18,0.00019569,2]
[347115140,1735503070623,-182.71,0.00019569,2]
[347115141,1735503070632,-500.0,0.00019569,2]
[347115142,1735503070641,-1046.25,0.00019569,2]
[347115143,1735503070651,-500.0,0.00019569,2]
[347115144,1735503070661,-501.01,0.00019569,2]
[347115145,1735503070671,-894.47,0.00019569,2]
[347115146,1735503070680,-500.0,0.00019569,2]
[347115147,1735503070689,-673.33,0.00019569,2]
[347115148,1735503070699,-631.12,0.00019569,2]
[347115149,1735503070708,-298.2427709,0.0001958,2]
[347115150,1735503070717,-150.0,0.00019589,2]
[347115151,1735503070726,-1000.0,0.000196,2]
[347115152,1735503070736,-500.0,0.00019643,2]
[347115153,1735503070745,-500.0,0.00019643,2]
[347115154,1735503070755,-500.0,0.00019643,2]
[347115155,1735503070764,-500.0,0.00019643,2]
[347115156,1735503070773,-500.0,0.00019643,2]
[347115157,1735503070783,-500.0,0.00019643,2]
[347115158,1735503070792,-500.0,0.00019643,2]
[347115159,1735503070801,-500.0,0.00019643,2]
[347115160,1735503070810,-500.0,0.00019643,2]
[347115161,1735503070820,-500.0,0.00019643,2]
[347115162,1735503070829,-500.0,0.00019643,2]
[347115163,1735503070838,-500.0,0.00019643,2]
[347115164,1735503070848,-500.0,0.00019643,2]
[347115165,1735503070857,-845.45,0.00019645,2]
[347115166,1735503070866,-1780.83,0.00019645,2]
[347115167,1735503070876,-525.17,0.00019645,2]
[347115168,1735503070885,-843.1,0.00019645,2]
[347115169,1735503070895,-654.57,0.00019645,2]
[347115170,1735503070904,-1099.79,0.00019645,2]
[347115171,1735503070913,-603.24,0.00019645,2]
[347115172,1735503070923,-608.79,0.00019645,2]
[347115173,1735503070932,-1529.19,0.00019645,2]
[347115174,1735503070941,-500.0,0.00019645,2]
[347115175,1735503070951,-500.0,0.00019646,2]
[347115176,1735503070960,-500.0,0.00019646,2]
[347115177,1735503070970,-500.0,0.00019646,2]
[347115178,1735503070980,-500.0,0.00019646,2]
[347115179,1735503070992,-500.0,0.00019646,2]
[347115180,1735503071001,-500.0,0.00019646,2]
[347115181,1735503071012,-500.0,0.00019646,2]
[347115182,1735503071022,-500.0,0.00019646,2]
[347115183,1735503071032,-500.0,0.00019646,2]
[347115184,1735503071041,-500.0,0.00019646,2]
[347115185,1735503071051,-500.0,0.00019646,2]
[347115186,1735503071060,-500.0,0.00019646,2]
[347115187,1735503071070,-500.0,0.00019646,2]
[347115188,1735503071079,-500.0,0.00019646,2]
[347115189,1735503071089,-500.0,0.00019646,2]
[347115190,1735503071099,-500.0,0.00019646,2]
[347115191,1735503071109,-500.0,0.00019646,2]
[347115192,1735503071119,-500.0,0.00019646,2]
[347115193,1735503071128,-500.0,0.00019646,2]
[347115194,1735503071137,-500.0,0.00019646,2]
[347115195,1735503071147,-500.0,0.00019646,2]
[347115196,1735503071156,-500.0,0.00019646,2]
[347115197,1735503071165,-500.0,0.00019646,2]
[347115198,1735503071175,-500.0,0.00019646,2]
[347115199,1735503071187,-500.0,0.00019646,2]
[347115200,1735503071197,-500.0,0.00019646,2]
[347115201,1735503071206,-500.0,0.00019646,2]
[347115202,1735503071215,-500.0,0.00019646,2]
[347115203,1735503071225,-500.0,0.00019646,2]
[347115204,1735503071234,-500.0,0.00019646,2]
[347115205,1735503071243,-500.0,0.00019646,2]
[347115206,1735503071253,-500.0,0.00019646,2]
[347115207,1735503071262,-500.0,0.00019646,2]
[347115208,1735503071271,-500.0,0.00019646,2]
[347115209,1735503071280,-500.0,0.00019646,2]
[347115210,1735503071288,-500.0,0.00019646,2]
[347115211,1735503071298,-500.0,0.00019646,2]
[347115212,1735503071307,-500.0,0.00019646,2]
[347115213,1735503071316,-500.0,0.00019646,2]
[347115214,1735503071326,-500.0,0.00019646,2]
[347115215,1735503071335,-500.0,0.00019646,2]
[347115216,1735503071345,-500.0,0.00019646,2]
[347115217,1735503071354,-500.0,0.00019646,2]
[347115218,1735503071364,-500.0,0.00019646,2]
[347115219,1735503071374,-500.0,0.00019646,2]
[347115220,1735503071383,-500.0,0.00019646,2]
[347115221,1735503071393,-500.0,0.00019646,2]
[347115222,1735503071402,-500.0,0.00019646,2]
[347115223,1735503071412,-500.0,0.00019646,2]
[347115224,1735503071421,-500.0,0.00019646,2]
[347115225,1735503071431,-500.0,0.00019646,2]
[347115226,1735503071440,-500.0,0.00019646,2]
[347115227,1735503071450,-500.0,0.00019646,2]
[347115228,1735503071460,-500.0,0.00019646,2]
[347115229,1735503071471,-500.0,0.00019646,2]
[347115230,1735503071481,-500.0,0.00019646,2]
[347115231,1735503071490,-500.0,0.00019646,2]
[347115232,1735503071499,-500.0,0.00019646,2]
[347115233,1735503071509,-500.0,0.00019646,2]
[347115234,1735503071518,-500.0,0.00019646,2]
[347115235,1735503071527,-500.0,0.00019646,2]
[347115236,1735503071536,-500.0,0.00019646,2]
[347115237,1735503071546,-500.0,0.00019646,2]
[347115238,1735503071555,-500.0,0.00019646,2]
[347115239,1735503071564,-500.0,0.00019646,2]
[347115240,1735503071573,-500.0,0.00019646,2]
[347115241,1735503071583,-500.0,0.00019646,2]
[347115242,1735503071591,-500.0,0.00019646,2]
[347115243,1735503071601,-500.0,0.00019646,2]
[347115244,1735503071610,-500.0,0.00019646,2]
[347115245,1735503071620,-500.0,0.00019646,2]
[347115246,1735503071629,-500.0,0.00019646,2]
[347115247,1735503071638,-500.0,0.00019646,2]
[347115248,1735503071648,-500.0,0.00019646,2]
[347115249,1735503071657,-500.0,0.00019646,2]
[347115250,1735503071667,-500.0,0.00019646,2]
[347115251,1735503071676,-500.0,0.00019646,2]
[347115252,1735503071685,-500.0,0.00019646,2]
[347115253,1735503071694,-500.0,0.00019646,2]
[347115254,1735503071703,-500.0,0.00019646,2]
[347115255,1735503071713,-500.0,0.00019646,2]
[347115256,1735503071722,-500.0,0.00019646,2]
[347115257,1735503071732,-500.0,0.00019646,2]
[347115258,1735503071741,-500.0,0.00019646,2]
[347115259,1735503071750,-500.0,0.00019646,2]
[347115260,1735503071760,-500.0,0.00019646,2]
[347115261,1735503071770,-500.0,0.00019646,2]
[347115262,1735503071779,-500.0,0.00019646,2]
[347115263,1735503071788,-500.0,0.00019646,2]
[347115264,1735503071798,-500.0,0.00019646,2]
[347115265,1735503071807,-500.0,0.00019646,2]
[347115266,1735503071817,-500.0,0.00019646,2]
[347115267,1735503071827,-500.0,0.00019646,2]
[347115268,1735503071836,-500.0,0.00019646,2]
[347115269,1735503071845,-500.0,0.00019646,2]
[347115270,1735503071855,-500.0,0.00019646,2]
[347115271,1735503071863,-500.0,0.00019646,2]
[347115272,1735503071873,-500.0,0.00019646,2]
[347115273,1735503071883,-500.0,0.00019646,2]
[347115274,1735503071892,-500.0,0.00019646,2]
[347115275,1735503071901,-500.0,0.00019646,2]
[347115276,1735503071910,-500.0,0.00019646,2]
[347115277,1735503071960,-500.0,0.00019646,2]
[347115278,1735503071969,-500.0,0.00019646,2]
[347115279,1735503071978,-500.0,0.00019646,2]
[347115280,1735503071987,-500.0,0.00019646,2]
[347115281,1735503071996,-500.0,0.00019646,2]
[347115282,1735503072005,-500.0,0.00019646,2]
[347115283,1735503072015,-500.0,0.00019646,2]
[347115284,1735503072024,-500.0,0.00019646,2]
[347115285,1735503072033,-500.0,0.00019646,2]
[347115286,1735503072042,-500.0,0.00019646,2]
[347115287,1735503072052,-500.0,0.00019646,2]
[347115288,1735503072061,-500.0,0.00019646,2]
[347115289,1735503072070,-500.0,0.00019646,2]
[347115290,1735503072079,-500.0,0.00019646,2]
[347115291,1735503072088,-500.0,0.00019646,2]
[347115292,1735503072097,-500.0,0.00019646,2]
[347115293,1735503072106,-500.0,0.00019646,2]
[347115294,1735503072115,-500.0,0.00019646,2]
[347115295,1735503072124,-500.0,0.00019646,2]
[347115296,1735503072134,-500.0,0.00019646,2]
[347115297,1735503072142,-500.0,0.00019646,2]
[347115298,1735503072152,-500.0,0.00019646,2]
[347115299,1735503072161,-500.0,0.00019646,2]
[347115300,1735503072169,-500.0,0.00019646,2]
[347115301,1735503072181,-500.0,0.00019646,2]
[347115302,1735503072192,-500.0,0.00019646,2]
[347115303,1735503072201,-500.0,0.00019646,2]
[347115304,1735503072210,-500.0,0.00019646,2]
[347115305,1735503072219,-500.0,0.00019646,2]
[347115306,1735503072229,-500.0,0.00019646,2]
[347115307,1735503072238,-500.0,0.00019646,2]
[347115308,1735503072247,-500.0,0.00019646,2]
[347115309,1735503072259,-500.0,0.00019646,2]
[347115310,1735503072269,-500.0,0.00019646,2]
[347115311,1735503072278,-500.0,0.00019646,2]
[347115312,1735503072286,-500.0,0.00019646,2]
[347115313,1735503072295,-500.0,0.00019646,2]
[347115314,1735503072304,-500.0,0.00019646,2]
[347115315,1735503072313,-500.0,0.00019646,2]
[347115316,1735503072322,-500.0,0.00019646,2]
[347115317,1735503072331,-500.0,0.00019646,2]
[347115318,1735503072340,-500.0,0.00019646,2]
[347115319,1735503072349,-500.0,0.00019646,2]
[347115320,1735503072359,-500.0,0.00019646,2]
[347115321,1735503072369,-500.0,0.00019646,2]
[347115322,1735503072379,-500.0,0.00019646,2]
[347115323,1735503072389,-500.0,0.00019646,2]
[347115324,1735503072399,-500.0,0.00019646,2]
[347115325,1735503072409,-500.0,0.00019646,2]
[347115326,1735503072418,-500.0,0.00019646,2]
[347115327,1735503072427,-500.0,0.00019646,2]
[347115328,1735503072436,-500.0,0.00019646,2]
[347115329,1735503072446,-500.0,0.00019646,2]
[347115330,1735503072455,-500.0,0.00019646,2]
[347115331,1735503072463,-500.0,0.00019646,2]
[347115332,1735503072473,-500.0,0.00019646,2]
[347115333,1735503072482,-500.0,0.00019646,2]
[347115334,1735503072491,-500.0,0.00019646,2]
[347115335,1735503072500,-500.0,0.00019646,2]
[347115336,1735503072510,-500.0,0.00019646,2]
[347115337,1735503072519,-500.0,0.00019646,2]
[347115338,1735503072528,-500.0,0.00019646,2]
[347115339,1735503072537,-500.0,0.00019646,2]
[347115340,1735503072546,-500.0,0.00019646,2]
[347115341,1735503072555,-500.0,0.00019646,2]
[347115342,1735503072564,-500.0,0.00019646,2]
[347115343,1735503072573,-500.0,0.00019646,2]
[347115344,1735503072582,-500.0,0.00019646,2]
[347115345,1735503072591,-500.0,0.00019646,2]
[347115346,1735503072600,-500.0,0.00019646,2]
[347115347,1735503072609,-500.0,0.00019646,2]
[347115348,1735503072618,-500.0,0.00019646,2]
[347115349,1735503072627,-500.0,0.00019646,2]
[347115350,1735503072636,-500.0,0.00019646,2]
[347115351,1735503072652,-500.0,0.00019646,2]
[347115352,1735503072662,-500.0,0.00019646,2]
[347115353,1735503072671,-500.0,0.00019646,2]
[347115354,1735503072680,-500.0,0.00019646,2]
[347115355,1735503072689,-500.0,0.00019646,2]
[347115356,1735503072698,-500.0,0.00019646,2]
[347115357,1735503072707,-500.0,0.00019646,2]
[347115358,1735503072716,-500.0,0.00019646,2]
[347115359,1735503072725,-500.0,0.00019646,2]
[347115360,1735503072735,-500.0,0.00019646,2]
[347115361,1735503072744,-500.0,0.00019646,2]
[347115362,1735503072753,-500.0,0.00019646,2]
[347115363,1735503072762,-500.0,0.00019646,2]
[347115364,1735503072771,-500.0,0.00019646,2]
[347115365,1735503072780,-500.0,0.00019646,2]
[347115366,1735503072789,-500.0,0.00019646,2]
[347115367,1735503072799,-500.0,0.00019646,2]
[347115368,1735503072808,-500.0,0.00019646,2]
[347115369,1735503072816,-500.0,0.00019646,2]
[347115370,1735503072825,-500.0,0.00019646,2]
[347115371,1735503072834,-500.0,0.00019646,2]
[347115372,1735503072843,-500.0,0.00019646,2]
[347115373,1735503072852,-500.0,0.00019646,2]
[347115374,1735503072861,-500.0,0.00019646,2]
[347115375,1735503072870,-500.0,0.00019646,2]
[347115376,1735503072879,-500.0,0.00019646,2]
[347115377,1735503072888,-500.0,0.00019646,2]
[347115378,1735503072897,-500.0,0.00019646,2]
[347115379,1735503072906,-773.37,0.00019646,2]
[347115380,1735503072916,-500.0,0.00019646,2]
[347115381,1735503072925,-436.92,0.00019646,2]
[347115382,1735503072935,-860.07,0.00019646,2]
[347115383,1735503072945,-848.88,0.00019646,2]
[347115384,1735503072954,-150.0,0.00019683,2]
[347115385,1735503072963,-500.0,0.00019726,2]
[347115386,1735503072972,-150.0,0.00019726,2]
[347115387,1735503072981,-213.03344321,0.00019748,2]
[347115388,1735503072991,-201.0,0.00019756,2]
[347115389,1735503073000,-19574.109534,0.000198,2]
[347115390,1735503073012,-500.0,0.0001983,2]
[347115391,1735503073021,-500.0,0.00019842,2]
[347115392,1735503073031,-500.0,0.00019842,2]
[347115393,1735503073041,-199.69,0.00019842,2]
[347115394,1735503073050,-204.47,0.00019842,2]
[347115395,1735503073060,-500.0,0.00019842,2]
[347115396,1735503073070,-500.0,0.00019842,2]
[347115397,1735503073079,-667.24,0.00019842,2]
[347115398,1735503073088,-1151.13,0.00019842,2]
[347115399,1735503073098,-500.23,0.00019842,2]
[347115400,1735503073107,-1940.6,0.00019842,2]
[347115401,1735503073117,-500.0,0.00019842,2]
[347115402,1735503073127,-500.0,0.00019842,2]
[347115403,1735503073137,-500.0,0.00019842,2]
[347115404,1735503073146,-500.0,0.00019842,2]
[347115405,1735503073155,-500.0,0.00019842,2]
[347115406,1735503073165,-629.96,0.00019842,2]
[347115407,1735503073174,-1169.28,0.00019842,2]
[347115408,1735503073187,-942.62,0.00019842,2]
[347115409,1735503073197,-888.62,0.00019842,2]
[347115410,1735503073206,-500.0,0.00019842,2]
[347115411,1735503073215,-5874.67,0.00019842,2]
[347115412,1735503073226,-1960.19,0.00019843,2]